Cogmind - Beta 17.1 @@@ ROGUE MODE // 2026.09.04 @ 14:53:56 Player: Godsword Result: Destroyed by Heavy Explosive Trap Performance ------------- Evolutions (2) 1000 Regions Visited (5) 1000 Robots Destroyed (3) 15 Value Destroyed (46) 46 Prototype IDs (1) 20 Alien Tech Used (0) 0 Bonus (400) 400 TOTAL SCORE: 2481 Bonus ------- Pacifist 200 Entered Garrisons 200 Cogmind --------- Core Integrity 0/550 Matter 285/300 Energy 100/100 System Corruption 0% Temperature Cool (2) Movement Flying (35) Location -8/Garrison Parts ------- > --- POWER (1) -------- (None) > --- PROPULSION (5) --- Cesium-ion Thruster > --- UTILITY (3) ------ Advanced Targeting Computer > --- WEAPON (2) ------- (None) > --- INVENTORY (5) ---- Nuclear Core Cooling System Rocket Launcher Peak State ------------ > --- POWER ------------ (None) > --- PROPULSION ------- Cesium-ion Thruster > --- UTILITY ---------- Advanced Targeting Computer > --- WEAPON ----------- Segregator > --- INVENTORY -------- Nuclear Core Cooling System Rocket Launcher [Rating: 11] Favorites ----------- Power None Propulsion VTOL Module Flight Unit VTOL Module Utility Advanced Targeting Computer Device Cooling System Processor Advanced Targeting Computer Weapon Mace Ballistic Gun Improved Assault Rifle Impact Weapon Mace Slashing Weapon Segregator Build | -11 -10 -9 -8 -8 -8 ------- Run | Yrd Mat Mat Mat Sto Gar Slots Evolved 4 | . . 2 2 . . Power . | . . . . . . Propulsion 3 | . . 2 1 . . Utility 1 | . . . 1 . . Weapon . | . . . . . . Parts Attached 8 | . . 4 1 . 3 Power . | . . . . . . Engine . | . . . . . . Core . | . . . . . . Reactor . | . . . . . . Propulsion 2 | . . 1 . . 1 Treads . | . . . . . . Leg . | . . . . . . Wheel . | . . . . . . Hover . | . . . . . . Flight 2 | . . 1 . . 1 Utility 2 | . . 1 1 . . Device 1 | . . 1 . . . Storage . | . . . . . . Processor 1 | . . . 1 . . Hackware . | . . . . . . Protection . | . . . . . . Artifact . | . . . . . . Weapon 4 | . . 2 . . 2 Energy Gun . | . . . . . . Energy Cannon . | . . . . . . Ballistic Gun 1 | . . 1 . . . Ballistic Cannon . | . . . . . . Launcher . | . . . . . . Special Weapon . | . . . . . . Impact Weapon 1 | . . 1 . . . Slashing Weapon 2 | . . . . . 2 Piercing Weapon . | . . . . . . Special Melee Weapon . | . . . . . . Unidentified Prototypes 1 | . . 1 . . . Parts Lost 4 | . . . . . 4 Power . | . . . . . . Propulsion 1 | . . . . . 1 Utility . | . . . . . . Weapon 3 | . . . . . 3 Highest Loss Streak 2 | . . . . . 2 To Critical Strikes . | . . . . . . Average Backups 1 | . . . 2 3 3 Power . | . . . . 1 1 Propulsion . | . . . . . . Utility . | . . . 1 1 1 Weapon . | . . . . 1 1 Tool/Special . | . . . . . . Unused Backups 2 | . . . . . 2 Power 1 | . . . . . 1 Propulsion . | . . . . . . Utility . | . . . . . . Weapon 1 | . . . . . 1 Tool/Special . | . . . . . . Average Slot Usage (%) 15 | . . 10 25 27 19 Flight 4 | . . 3 9 9 3 Processor 5 | . . . 7 9 9 Impact Weapon 5 | . . 7 9 9 4 Slashing Weapon 1 | . . . . . 3 Peak Build Rating 11 | . . 5 7 7 11 Average Rating 4 | . . 2 6 7 6 On Entrance 3 | . . . 4 7 7 Avg Prop Armor Cover (%) . | . . . . . . Naked Turns 80 | . 52 28 . . . Heaviest Build 3 | . . 2 2 2 3 Greatest Support 5 | 3 3 4 4 4 5 Greatest Overweight (x) . | . . . . . . Average Overweight (x) . | . . . . . . Largest Inventory Capacity 5 | 5 5 5 5 5 5 Average Capacity 5 | 5 5 5 5 5 5 Most Carried 4 | . . 1 3 3 4 Average Carried 1 | . . . 2 3 3 Final Capacity 5 | 5 5 5 5 5 5 Final Carried 3 | . . 1 3 3 3 Class Distribution -------------------- 100% | Mutant Dominant Class ---------------- Mutant | -10/Materials Mutant | -9/Materials Mutant | -8/Materials Mutant | -8/Storage Mutant | -8/Garrison Resources | -11 -10 -9 -8 -8 -8 ----------- Run | Yrd Mat Mat Mat Sto Gar Matter Collected 248 | 174 . 64 . . 10 Remotely . | . . . . . . Salvage Created 97 | . . 97 . . . Parts 1 | . . 1 . . . Haulers Intercepted 1 | . . 1 . . . Recyclers Shooed 1 | 1 . . . . . Parts Field Recycled . | . . . . . . Retrieved Matter . | . . . . . . Parts Self-Destructed . | . . . . . . Prevented . | . . . . . . Parts Restored . | . . . . . . Kills | -11 -10 -9 -8 -8 -8 ------- Run | Yrd Mat Mat Mat Sto Gar Combat Hostiles Destroyed 2 | . . 2 . . . Melee 1 | . . 1 . . . Classes Destroyed 3 | . . 3 . . . Hauler 1 | . . 1 . . . Swarmer 1 | . . 1 . . . Grunt 1 | . . 1 . . . Best Kill Streak 2 | . . 2 . . . Combat Bots Only 1 | . . 1 . . . Max Kills in Single Turn 1 | . . 1 . . . Gunslinging . | . . . . . . Exploded . | . . . . . . Melee 1 | . . 1 . . . Uniques/NPCs Destroyed . | . . . . . . Combat | -11 -10 -9 -8 -8 -8 -------- Run | Yrd Mat Mat Mat Sto Gar Hostile Shots Fired 117 | . 2 39 2 . 74 Missed 41 | . . 21 1 . 19 Hits 76 | . 2 18 1 . 55 Projectile 76 | . 2 18 1 . 55 Critical Strikes 1 | . . . . . 1 Damage Taken 1056 | 2 24 211 18 . 801 Core 758 | 2 24 160 18 . 554 Absorbed by Shields . | . . . . . . Core Remaining (%) 82 | 99 89 60 . . . Volleys Fired . | . . . . . . Largest . | . . . . . . Hottest . | . . . . . . Shots Fired . | . . . . . . Gun . | . . . . . . Cannon . | . . . . . . Launcher . | . . . . . . Special . | . . . . . . Kinetic . | . . . . . . Thermal . | . . . . . . Explosive . | . . . . . . Electromagnetic . | . . . . . . Robot Hit Streak . | . . . . . . Robot Miss Streak . | . . . . . . Penetration Max . | . . . . . . Secondary Targets . | . . . . . . Shots Hit Robots 7 | . . 7 . . . Core Hits 2 | 1 . 1 . . . Critical Kills . | . . . . . . Critical Parts Destroyed 1 | . . 1 . . . Critical Strikes 1 | . . 1 . . . Smash 1 | . . 1 . . . Melee Attacks 24 | . . 10 3 . 11 Thermal 11 | . . . . . 11 Impact 13 | . . 10 3 . . Slashing . | . . . . . . Piercing . | . . . . . . Sneak Attacks 1 | . . 1 . . . Combat Hostiles . | . . . . . . Follow-up Attacks . | . . . . . . Damage Inflicted 255 | 5 . 250 . . . Guns . | . . . . . . Cannons . | . . . . . . Explosions . | . . . . . . Melee 250 | . . 250 . . . Ramming 5 | 5 . . . . . Kinetic . | . . . . . . Thermal . | . . . . . . Explosive . | . . . . . . Electromagnetic . | . . . . . . Impact 250 | . . 250 . . . Slashing . | . . . . . . Piercing . | . . . . . . Highest Corruption . | . . . . . . Average Corruption . | . . . . . . Corruption Purged . | . . . . . . Corruption Blocked . | . . . . . . Overload Shots . | . . . . . . Overflow Damage 60 | . . 60 . . . Projectiles . | . . . . . . Explosions . | . . . . . . Melee 60 | . . 60 . . . Knockbacks . | . . . . . . Impact . | . . . . . . Kinetic . | . . . . . . Secondary . | . . . . . . Self-Inflicted Damage 2 | 2 . . . . . Shots . | . . . . . . Rammed 1 | 1 . . . . . Targets Rammed 1 | 1 . . . . . Kicked . | . . . . . . Crushed . | . . . . . . Highest Temperature . | . . . . . . Average Temperature . | . . . . . . Received Heat Transfer 105 | . 15 72 9 . 9 Siege Activations . | . . . . . . Martial Activations . | . . . . . . Shielding Activations . | . . . . . . Robots Disrupted . | . . . . . . Combat Hostiles . | . . . . . . Robots Corrupted 2 | . . 2 . . . Combat Hostiles 1 | . . 1 . . . Parts Fried 2 | . . 2 . . . Impact Corruptions 5 | . . 5 . . . Robots Melted . | . . . . . . Combat Hostiles . | . . . . . . Parts Melted . | . . . . . . Heat Transferred . | . . . . . . Parts Sabotaged . | . . . . . . Parts Stolen . | . . . . . . Parts Stripped . | . . . . . . Power Chain Reactions . | . . . . . . Alert | -11 -10 -9 -8 -8 -8 ------- Run | Yrd Mat Mat Mat Sto Gar Maximum Alert Level . | . . . . . . Low Security (%) 100 | 100 100 100 100 100 100 Level 1 . | . . . . . . Level 2 . | . . . . . . Level 3 . | . . . . . . Level 4 . | . . . . . . Level 5 . | . . . . . . High Security . | . . . . . . Max Security . | . . . . . . Peak Influence 40 | . . 40 16 . 16 Initial 16 | . . . 16 . . Average 4 | . . 12 5 . . Influence Increases 110 | . . 92 2 . 16 Destroy 0b10 Robot/C 40 | . . 40 . . . Destroy 0b10 Robot/NC 5 | . . 5 . . . Destroy Leader 2 | . . 2 . . . Successful Hack 16 | . . . . . 16 Destroy Structure 2 | . . . 2 . . Partial Spotted 15 | . . 15 . . . Lose Combat Pursuer 30 | . . 30 . . . Influence Decreases 110 | . . 52 42 . 16 Entered New Map 24 | . . . 24 . . Time Decay 48 | . . 30 18 . . Lost Part 10 | . . . . . 10 Lost Ally 6 | . . . . . 6 Purge Threat 22 | . . 22 . . . Squads Dispatched 1 | . . 1 . . . Investigation . | . . . . . . Extermination . | . . . . . . Reinforcement 1 | . . 1 . . . Assault . | . . . . . . Garrison . | . . . . . . Intercept . | . . . . . . Searches Triggered . | . . . . . . Construction Impeded . | . . . . . . Haulers Reinforced . | . . . . . . Active Scanning Responses . | . . . . . . Cargo Convoy Interrupts . | . . . . . . Stealth | -11 -10 -9 -8 -8 -8 --------- Run | Yrd Mat Mat Mat Sto Gar Distress Signals 1 | . . 1 . . . Communications Jammed . | . . . . . . Distress Signals . | . . . . . . Times Spotted 23 | . 4 12 3 1 3 Peak Tracking Total 8 | . 5 8 3 1 3 Tactical Retreats 1 | . . 1 . . . Traps | -11 -10 -9 -8 -8 -8 ------- Run | Yrd Mat Mat Mat Sto Gar Traps Triggered 1 | . . . . . 1 Indirectly . | . . . . . . Trap Hack Attempts . | . . . . . . Triggered . | . . . . . . Disarmed . | . . . . . . Reprogrammed . | . . . . . . Reused . | . . . . . . Traps Extracted . | . . . . . . Installed . | . . . . . . Triggered . | . . . . . . Machines | -11 -10 -9 -8 -8 -8 ---------- Run | Yrd Mat Mat Mat Sto Gar Machines Disabled . | . . . . . . Max in Single Turn . | . . . . . . Machines Repaired . | . . . . . . Machines Dismantled . | . . . . . . Machines Sabotaged . | . . . . . . Overloaded Fab Kills . | . . . . . . Hacking | -11 -10 -9 -8 -8 -8 --------- Run | Yrd Mat Mat Mat Sto Gar Machines Accessed 6 | . 2 1 1 1 1 Terminals 5 | . 2 1 1 . 1 Fabricators . | . . . . . . Repair Stations . | . . . . . . Recycling Units . | . . . . . . Scanalyzers . | . . . . . . Garrison Access 1 | . . . . 1 . Total Hacks 10 | . 3 2 3 1 1 Successful 5 | . 1 1 1 1 1 Failed 5 | . 2 1 2 . . Catastrophic 2 | . 1 1 . . . Database Lockouts . | . . . . . . Manual 2 | . 2 . . . . Terminals 9 | . 3 2 3 . 1 Fabricators . | . . . . . . Repair Stations . | . . . . . . Recycling Units . | . . . . . . Scanalyzers . | . . . . . . Garrison Access 1 | . . . . 1 . Terminal Hacks 3 | . . 1 1 . 1 Unreport Threat 1 | . . 1 . . . Zone Layout 1 | . . . 1 . . Security Stations 1 | . . . . . 1 Fabricator Hacks . | . . . . . . Repair Station Hacks . | . . . . . . Recycling Unit Hacks . | . . . . . . Scanalyzer . | . . . . . . Garrison Access Hacks 1 | . . . . 1 . Unlock Access 1 | . . . . 1 . Unauthorized Hacks 1 | . 1 . . . . Terminals 1 | . 1 . . . . Botnet 1 | . 1 . . . . Fabricators . | . . . . . . Repair Stations . | . . . . . . Recycling Units . | . . . . . . Scanalyzers . | . . . . . . Garrison Access . | . . . . . . Data Cores Recovered . | . . . . . . Used . | . . . . . . Hacking Detections 5 | . 1 1 1 1 1 Full Trace Events 1 | . . 1 . . . Feedback Events . | . . . . . . Feedback Blocked . | . . . . . . Robot Schematics Acquired . | . . . . . . Robots Built . | . . . . . . Authchips . | . . . . . . Time . | . . . . . . Total Robot Build Rating . | . . . . . . Part Schematics Acquired . | . . . . . . Parts Built . | . . . . . . Authchips . | . . . . . . Time . | . . . . . . Total Part Build Rating . | . . . . . . Part Studies Acquired . | . . . . . . Parts Repaired . | . . . . . . Time . | . . . . . . Parts Recycled . | . . . . . . Recycled Matter . | . . . . . . Retrieved Matter . | . . . . . . Retrieved Components . | . . . . . . Parts Scanalyzed . | . . . . . . Part Schematics Acquired . | . . . . . . Parts Damaged . | . . . . . . Bothacking | -11 -10 -9 -8 -8 -8 ------------ Run | Yrd Mat Mat Mat Sto Gar Used RIF Installer . | . . . . . . Robots Hacked . | . . . . . . Non-combat . | . . . . . . Combat . | . . . . . . Robot Hacks Applied . | . . . . . . Relay Couplers Released . | . . . . . . Fabnet Peak Effective % . | . . . . . . Robots Rewired 3 | . . . . . 3 Allies Hacked . | . . . . . . Hacks Repelled . | . . . . . . Allies | -11 -10 -9 -8 -8 -8 -------- Run | Yrd Mat Mat Mat Sto Gar Total Allies 3 | . . . . . 3 Largest Group 1 | . . . . . 1 Highest-Rated Group 14 | . . . . . 14 Highest-Rated Ally 14 | . . . . . 14 Total Orders . | . . . . . . Ally Attacks 2 | . . . . . 2 Total Damage . | . . . . . . Kills . | . . . . . . Allies Corrupted . | . . . . . . Allies Melted . | . . . . . . Intel | -11 -10 -9 -8 -8 -8 ------- Run | Yrd Mat Mat Mat Sto Gar Active Infowar (turns) . | . . . . . . Robot Analysis Total . | . . . . . . Derelict Logs Recovered . | . . . . . . Drone Launches . | . . . . . . Drone Recoveries . | . . . . . . Exploration | -11 -10 -9 -8 -8 -8 ------------- Run | Yrd Mat Mat Mat Sto Gar Turns Passed 398 | 13 52 96 86 7 144 Spaces Moved 571 | 25 103 136 145 19 143 Core 247 | 25 103 94 . . 25 Treads . | . . . . . . Legs . | . . . . . . Wheels . | . . . . . . Hover . | . . . . . . Flight 324 | . . 42 145 19 118 Fastest Speed 35 | 50 50 35 35 35 35 Average Speed 41 | 50 50 45 35 35 37 Slowest Speed 50 | 50 50 50 35 35 50 Overloaded Moves . | . . . . . . Propulsion Burnouts . | . . . . . . Robots Hopped 5 | . . 3 2 . . Potential Cave-ins . | . . . . . . Cave-ins Triggered . | . . . . . . Exploration Rate (%) 14 | 4 24 18 17 7 17 Regions Visited 5 Branch Regions 1 Pre-discovered Areas . | . . . . . . Known Exits Taken 1 | . . . . 1 . Unknown Exits Taken 4 | 1 1 1 1 . . Scrap Searched . | . . . . . . Spaces Dug 2 | . . . 2 . . Terrain Destroyed 2 | . . . 2 . . Melee 2 | . . . 2 . . Projectile . | . . . . . . AOE . | . . . . . . Terrain Rammed . | . . . . . . Walls Destroyed . | . . . . . . Machines Disabled . | . . . . . . Actions | -11 -10 -9 -8 -8 -8 --------- Run | Yrd Mat Mat Mat Sto Gar Total 675 | 25 102 148 171 19 210 Wait 23 | . . . 23 . . Move 557 | 24 102 129 140 19 143 Hop 5 | . . 3 2 . . Pick Up 3 | . . . 2 . 1 Fast Attach 7 | . . 4 1 . 2 Attach 1 | . . . . . 1 Detach 1 | . . 1 . . . Swap . | . . . . . . Drop 1 | . . 1 . . . Fire . | . . . . . . Melee 24 | . . 10 3 . 11 Ram 1 | 1 . . . . . Kick . | . . . . . . Crush . | . . . . . . Escape Stasis . | . . . . . . Rewire 52 | . . . . . 52 Trap . | . . . . . . Miscellaneous . | . . . . . . Route ------- -11/Scrapyard -10/Materials -9/Materials -8/Materials -8/Storage -8/Garrison History --------- Turn | Location | Event 5 | -11/Scrapyard | Discovered new exit (range 15) 14 | -11/Scrapyard | Entered Materials 64 | -10/Materials | Discovered new exit (range 4) 66 | -10/Materials | Entered another Materials area 66 | -9/Materials | Evolved 2 slots: Propulsion x2 158 | -9/Materials | Discovered new exit (range 13) 162 | -9/Materials | Entered another Materials area 162 | -8/Materials | Evolved 2 slots: Propulsion x1, Utility x1 171 | -8/Materials | Discovered new exit (range 17) 248 | -8/Materials | Entered Storage 255 | -8/Storage | Identified exit to Garrison 255 | -8/Storage | Entered Garrison 259 | -8/Garrison | Triggered checkpoint 279 | -8/Garrison | Learned Recycling security intel 305 | -8/Garrison | Build established: Mutant 332 | -8/Garrison | Lost 3 allies 333 | -8/Garrison | Core integrity fell below 50% 363 | -8/Garrison | Core integrity fell below 20% 399 | -8/Garrison | Destroyed by Heavy Explosive Trap Last Messages --------------- 00326_ Slug penetrates Wall. 00326_ Attempting to rewire E-15 Imp. 00329_ Slug penetrates Wall. 00329_ Attempting to rewire E-15 Imp. 00330_ Wall collapses. 00330_ Attempting to rewire E-15 Imp. 00332_ E-15 Imp destroyed. 00333_ Acquired Segregator. 00335_ Acquired 10 matter. 00341_ Penetrated by Slug. 00353_ Segregator destroyed. 00354_ Acquired Segregator. 00356_ Penetrated by Slug. 00359_ Slug penetrates Wall. 00368_ Acquired Cesium-ion Thruster. 00373_ Penetrated by Slug. 00380_ Slug penetrates Wall. 00399_ Triggered Heavy Explosive Trap. 00399_ An explosion rips through the floor. 00399_ Segregator destroyed. Map ----- +----------------------------------------------------+ | | | | | | | | | | | | | ????????????????????????????????????????? | | ????????????????????????????????????????? | | ????????????????????????????????????????? | | ????????????????????????????????????????? | | ????????????????????????????????????????? | | ????????????????????????????????????????? | | ????????????????????????????????????????? | | ????????????????????????????????????????? | | ????????????????????????????????????????? | | ????????????????????????????????????????? | | ????????????????????????????????????????? | | ????????????????????????????????????????? | | ?????????###??###???????????????????????? | | ?????????" "??" #???????????????????????? | | ?????????" "??" #???????????????????????? | | ?????#"""" """" ##??????????????????????? | | ?????# #????????????????####### | | ?????#""" # #??#####?????????# | | ????????"^ # #??# #?????????# ##### | | ????????" #a @#### ###########+#???? | | ?????#""" # #???? | | ?????# #???? | | ?????#"""" """" ########## ### #???? | | ?????????" "??" #????????#######?# ####? | | ?????????" "??" #????????????????# #!!#? | | ?????????###??###????????????????# #? | | ?????????????????????????????????# #!!#? | | ?????????????????????????????????# ####? | | ?????????????????????????????????# #???? | | ?????????????????????????????????# #???? | | ?????????????????????????????????# #???? | | ?????????????????????????????????# #???? | | ???????????????????????????####### ##### | | ???????????????????????????# | | ???????????????????????????# ##### | | ?????????????????????????????????# ##### | | ?????????????????????????????????# #???? | | ?????????????????????????????????# #???? | | ?????????????????????????????????# #???? | | ?????????????????????????????????# #???? | | ?????????????????????????????????# #???? | | ?????????????????????????????????# #???? | | ?????????????????????????????????# ????? | | ?????????????????????????????????# ????? | +----------------------------------------------------+ Best States ------------- Heat Dissipation 31 Energy Generation 5 Energy Capacity 100 Matter Stores 300 Matter Capacity 300 Sight Range 16 Terrain Scan Density 10 Evasion (%) 63 Targeting Accuracy 8 Item Schematics ----------------- None Robot Schematics ------------------ None Fabricated ------------ Nothing Repaired ---------- Nothing Studied --------- None Alien Tech Used ----------------- None Achievements -------------- None Challenges ------------ None Game ------ Seed RefineryTitaniumMantle Manual? 0 Play Time 00:08:07 Cumulative 53.2 hours Start 2026.09.04 @ 14:47:51 End 2026.09.04 @ 14:53:56 Sessions 1 Manual Loads 0 Difficulty Rogue Special Mode None Game No. 135 Rogue 135 Adventurer 0 Explorer 0 Win Type - Total 3 Types 3/0/0/0/0/0/0/0/0/0 Lore% 47 Gallery% 41 Achievement% 43 Wizard Run 0 Options --------- Layout 2 ASCII 0 Keyboard 0 Movement Mouse Keybinds 0 Fullscreen 1 Font 16/SmallcapsGlow Map View 50x49 Zoom Use 0% Tactical HUD 1 Map Filters NONE Filters NONE Steam SD RUN: 1e7745c7-3bfa-4e72-9c57-b41a0db9327e